bitfinex-derivatives/quotes_SOLF0:USTF0_20250924
["timestamp","ask_amount","ask_price","bid_price","bid_amount"]
[1758730953651,9.56705648,213.75,213.71,7.34]
[1758730953954,7.41,213.74,213.7,4.2094]
[1758730954247,7.41,213.74,213.68,7.34]
[1758730955152,2.15705648,213.79,213.68,7.34]
[1758730955351,1.16982837,213.78,213.68,7.34]
[1758730955550,1.16982837,213.77,213.7,7.34]
[1758730955754,2.15705648,213.79,213.7,7.34]
[1758730955951,1.16972746,213.78,213.74,11.5486]
[1758730956154,1.16972746,213.77,213.74,11.5486]
[1758730956352,7.41,213.8,213.73,7.34]
[1758730956552,1.1696882,213.79,213.75,4.2083]
[1758730956857,7.41,213.8,213.76,7.34]
[1758730957049,1.1695386,213.79,213.76,7.34]
[1758730957355,118.63705648,213.83,213.77,7.34]
[1758730957545,1.1695121,213.82,213.76,11.5481]
[1758730957747,1.1695121,213.81,213.77,7.34]
[1758730957950,1.1695121,213.8,213.76,4.2081]
[1758730958146,118.63705648,213.83,213.75,7.34]
[1758730958351,1.16953036,213.82,213.75,7.34]
[1758730958552,1.16953036,213.81,213.75,7.34]
[1758730958754,118.63705648,213.83,213.75,7.34]
[1758730958945,1.16951118,213.82,213.75,11.5483]
[1758730959144,1.16951118,213.81,213.75,11.5483]
[1758730959348,116.48,213.83,213.75,11.5483]
[1758730959549,1.16951043,213.82,213.75,11.5483]
[1758730959750,1.16951043,213.81,213.75,11.5483]
[1758730959949,1.16952916,213.8,213.76,7.34]
[1758730960256,2.15705648,213.81,213.75,7.34]
[1758730960454,1.16955627,213.8,213.73,4.2088]
[1758730960645,1.16956691,213.79,213.73,4.2088]
[1758730960851,2.15705648,213.81,213.73,4.2088]
[1758730961046,116.48,213.83,213.72,7.34]
[1758730961047,9.56705648,213.79,213.72,7.34]
[1758730961859,1.16963041,213.78,213.72,7.34]
[1758730962057,9.56705648,213.79,213.72,7.34]
[1758730962259,7.41,213.79,213.72,7.34]
[1758730962953,132.28193488,213.83,213.72,7.34]
[1758730963158,1.16959584,213.82,213.72,7.34]
[1758730963353,1.16959584,213.81,213.74,4.2086]
[1758730963554,132.28193488,213.83,213.72,7.34]
[1758730963555,1.16959584,213.8,213.73,7.34]
[1758730963858,124.66439704,213.83,213.73,7.34]
[1758730964054,1.16958612,213.82,213.73,7.34]
[1758730964254,1.16958612,213.81,213.73,7.34]
[1758730964557,1.16958612,213.8,213.77,7.34]
[1758730964756,8.22439704,213.83,213.77,7.34]
[1758730964956,8.57951056,213.82,213.77,7.34]
[1758730965155,1.16951056,213.81,213.77,7.34]
[1758730965362,116.42,213.85,213.75,7.34]
[1758730965553,1.16948544,213.84,213.75,7.34]
[1758730965753,1.16948544,213.83,213.75,7.34]
[1758730966060,1.16948544,213.82,213.78,11.5477]
[1758730966258,116.42,213.85,213.78,11.5477]
[1758730966460,1.16949381,213.84,213.78,11.5477]
[1758730966656,8.57949381,213.83,213.78,11.5477]
[1758730966860,1.16949381,213.82,213.78,11.5477]
[1758730967056,1.16950219,213.81,213.78,11.5477]
[1758730967253,7.41,213.84,213.78,11.5477]
[1758730967453,7.41,213.82,213.78,11.5477]
[1758730967649,1.16950219,213.81,213.78,11.5477]
[1758730967957,7.41,213.84,213.76,4.2082]
[1758730968153,1.16950232,213.83,213.76,4.2082]
[1758730968355,1.16950232,213.82,213.76,4.2082]
[1758730968555,1.16950232,213.81,213.77,7.34]
[1758730968753,7.41,213.84,213.77,7.34]
[1758730969063,5.37640325,213.83,213.77,7.34]
[1758730969255,7.41,213.81,213.77,7.34]
[1758730973764,117.23428271,213.85,213.78,7.34]
[1758730973956,1.16948571,213.84,213.78,7.34]
[1758730974271,117.23428271,213.85,213.78,7.34]
[1758730974560,1.16941078,213.84,213.78,7.34]
[1758730974760,117.23428271,213.85,213.78,7.34]
[1758730974962,1.16941078,213.84,213.78,7.34]
[1758730975161,7.41,213.82,213.78,7.34]
[1758730975362,7.41,213.82,213.78,11.5477]
[1758730976659,117.23428271,213.85,213.78,7.34]
[1758730976660,7.41,213.84,213.78,7.34]
[1758730976968,7.41,213.82,213.76,4.2082]
[1758730978865,7.41,213.82,213.75,7.64]
[1758730978866,1.16950048,213.81,213.75,7.64]
[1758730979065,7.41,213.82,213.75,7.64]
[1758730979261,1.16951983,213.81,213.75,7.64]
[1758730979562,7.41,213.82,213.75,11.8483]
[1758730979764,7.41,213.82,213.75,7.64]
[1758730980569,7.41,213.82,213.78,7.7]
[1758730980866,7.32,213.82,213.78,7.7]
[1758730981763,116.34,213.83,213.77,4.2078]
[1758730981967,1.16950235,213.82,213.78,7.7]
[1758730982167,123.66,213.83,213.78,7.7]
[1758730982467,1.16950235,213.82,213.77,4.2078]
[1758730982666,123.66,213.83,213.78,4.2077]
[1758730982862,1.16950235,213.82,213.78,4.2077]
[1758730983068,116.32,213.83,213.79,7.7]
[1758730983369,123.64,213.83,213.79,7.7]
[1758730984067,116.32,213.83,213.79,7.7]
[1758730984372,7.32,213.82,213.78,4.2077]
[1758730984868,123.64,213.83,213.76,11.9082]
[1758730985063,1.16949342,213.82,213.76,11.9082]
[1758730985362,123.64,213.83,213.76,11.9082]
[1758730985565,1.16949356,213.82,213.76,11.9082]
[1758730985765,123.64,213.83,213.76,11.9082]
[1758730985970,1.16949356,213.82,213.76,11.9082]
[1758730986160,123.64,213.83,213.76,11.9082]
[1758730986363,1.16949356,213.82,213.76,11.9082]
[1758730986561,123.64,213.83,213.76,11.9082]
[1758730986762,1.16949343,213.82,213.76,11.9082]
[1758730986961,123.64,213.83,213.76,11.9082]
[1758730987268,8.48949343,213.82,213.78,11.9078]
[1758730987468,7.32,213.82,213.78,11.9078]
[1758730990970,7.32,213.82,213.79,7.7]
[1758730991569,116.32,213.83,213.75,7.7]
[1758730992162,7.32,213.85,213.76,65.461]
[1758730992362,345.73114459,213.92,213.81,7.7]
[1758730992565,117.44924148,213.91,213.81,7.7]
[1758730992762,1.16924148,213.9,213.83,3.37063784]
[1758730993065,116.28,213.91,213.86,7.7]
[1758730993261,7.32,213.97,213.86,3.37063784]
[1758730993463,117.44896231,213.96,213.9,7.7]
[1758730993670,1.16896231,213.95,213.88,7.7]
[1758730993970,116.28,213.96,213.9,7.7]
[1758730994467,116.28,213.96,213.86,3.37063784]
[1758730994468,1.16884893,213.95,213.88,4.2057]
[1758730994775,116.28,213.96,213.87,7.7]
[1758730995368,116.28,213.96,213.91,4.2051]
[1758730995561,116.28,213.96,213.89,73.1221]
[1758730995766,7.32,213.98,213.9,7.7]
[1758730995967,1.16875601,213.97,213.91,7.7]
[1758730996165,63.98,214.0,213.91,7.7]
[1758730996366,1.16875546,213.99,213.94,4.2045]
[1758730996566,1.16875546,213.98,213.9,7.7]
[1758730996761,71.3,214.0,213.9,7.7]
[1758730996973,1.1687556,213.99,213.94,4.2046]
[1758730997175,1.1687556,213.98,213.95,7.7]
[1758730997366,1.1687556,213.98,213.94,4.2046]
[1758730997367,71.3,214.0,213.94,11.9046]
[1758730997565,63.98,214.0,213.96,4.2043]
[1758730997766,63.98,214.0,213.97,7.7]
[1758730998170,63.98,214.0,213.96,4.2043]
[1758730998373,63.98,214.0,213.97,7.7]
[1758730998666,63.98,214.0,213.96,4.2043]
[1758730998866,63.98,214.0,213.97,7.7]
[1758730999065,63.98,214.0,213.96,4.2043]
[1758730999866,7.32,214.08,213.98,7.7]
[1758731000172,116.2,214.07,213.99,7.7]
[1758731000373,116.2,214.07,214.03,7.7]
[1758731000572,123.52,214.07,214.03,7.7]
[1758731002672,7.32,214.06,213.98,4.2038]
[1758731003263,7.32,214.06,213.97,7.7]
[1758731003967,7.32,214.06,214.0,7.55]
[1758731004470,116.16,214.09,214.0,7.55]
[1758731004671,116.16,214.09,214.03,4.2029]
[1758731005469,116.14,214.1,214.03,4.2029]
[1758731005768,7.43,214.09,214.05,4.2024]
[1758731005969,7.43,214.09,214.05,11.7524]
[1758731006270,123.57,214.1,214.02,3.37063784]
[1758731006572,123.57,214.1,214.03,7.55]
[1758731007873,123.57,214.1,214.02,3.37063784]
[1758731008177,123.57,214.1,214.02,10.92063784]
[1758731008878,123.57,214.1,214.03,4.2029]
[1758731009579,123.57,214.1,214.02,7.55]
[1758731009975,123.57,214.1,214.05,4.2023]
[1758731010280,123.57,214.1,214.05,11.7523]
[1758731010469,7.43,214.09,214.05,11.7523]
[1758731011379,7.43,214.09,214.05,7.55]
[1758731011580,7.43,214.09,214.01,4.2032]
[1758731016088,7.43,214.09,214.02,4.2029]
[1758731017689,123.57,214.1,214.02,7.55]
[1758731017891,7.43,214.1,214.02,7.55]
[1758731018086,7.43,214.15,214.03,7.55]
[1758731018388,123.47,214.14,214.08,4.2019]
[1758731021495,116.04,214.14,214.09,4.2016]
[1758731021695,7.43,214.13,214.09,4.2016]
[1758731021893,116.04,214.14,214.09,4.2016]
[1758731022396,7.43,214.13,214.09,4.2016]
[1758731022695,7.43,214.13,214.1,4.2014]
[1758731023397,7.43,214.13,214.1,11.7514]
[1758731023694,116.04,214.14,214.1,11.7514]
[1758731023890,7.43,214.13,214.1,4.2014]
[1758731024090,123.47,214.14,214.07,4.202]
[1758731024289,123.47,214.14,214.06,9.69995295]
[1758731024500,123.47,214.14,214.06,7.55]
[1758731025195,123.47,214.14,214.09,4.2017]
[1758731025398,7.43,214.13,214.06,7.55]
[1758731026291,7.43,214.13,214.07,4.2021]
[1758731026597,7.43,214.13,214.06,7.55]
[1758731027093,116.04,214.14,214.08,4.2018]
[1758731027298,123.47,214.14,214.08,4.2018]
[1758731027793,7.43,214.13,214.1,4.2015]
[1758731027997,116.04,214.14,214.1,4.2015]
[1758731027998,7.43,214.17,214.1,7.55]
[1758731028198,7.43,214.17,214.1,9.69995295]
[1758731028394,49.98,214.18,214.1,7.55]
[1758731028602,9.57995295,214.17,214.1,7.55]
[1758731029301,7.43,214.17,214.1,9.69995295]
[1758731029490,7.43,214.17,214.13,4.2009]
[1758731029688,49.98,214.18,214.1,9.69995295]
[1758731029887,9.57995295,214.17,214.09,4.2017]
[1758731030096,7.43,214.17,214.09,4.2017]
[1758731030298,7.43,214.15,214.09,4.2017]
[1758731030604,7.43,214.15,214.07,7.55]
[1758731030902,7.43,214.15,214.06,4.2022]
[1758731030903,7.43,214.13,214.05,2.14995295]
[1758731031292,9.57995295,214.14,214.05,9.69995295]
[1758731031697,7.43,214.14,214.05,9.69995295]
[1758731032205,7.43,214.14,214.09,4.2016]
[1758731032503,2.14995295,214.15,214.09,4.2016]
[1758731032892,7.43,214.14,214.07,4.2021]
[1758731035201,7.43,214.14,214.08,4.2018]
[1758731035802,2.14995295,214.15,214.09,4.2016]
[1758731036009,7.95,214.14,214.08,7.63]
[1758731037212,2.14995295,214.17,214.1,4.2014]
[1758731037513,7.95,214.16,214.1,4.2014]
[1758731038009,7.95,214.16,214.08,11.8318]
[1758731038210,7.95,214.16,214.08,7.63]
[1758731038404,10.09995295,214.16,214.08,7.63]
[1758731038607,10.09995295,214.16,214.09,4.2016]
[1758731039807,10.09995295,214.16,214.1,4.2014]
[1758731041512,10.09995295,214.16,214.11,4.2012]
[1758731041513,7.58,214.15,214.11,4.2012]
[1758731041713,2.14995295,214.16,214.11,4.2012]
[1758731043010,7.58,214.15,214.11,4.2012]
[1758731043508,2.14995295,214.16,214.11,4.2012]
[1758731044515,7.58,214.15,214.11,4.2012]
[1758731044718,2.14995295,214.16,214.09,4.2017]
[1758731044916,9.72995295,214.16,214.1,7.96]
[1758731045213,49.98,214.18,214.12,2.14995295]
[1758731045419,57.56,214.18,214.14,7.96]
[1758731045613,57.56,214.18,214.15,7.96]
[1758731046914,49.98,214.18,214.15,7.96]
[1758731047115,49.98,214.18,214.14,6.35055295]
[1758731047511,7.58,214.21,214.15,12.1604]
[1758731047814,7.58,214.21,214.15,7.96]
[1758731048014,7.58,214.21,214.16,2.14995295]
[1758731048215,7.58,214.21,214.17,7.96]
[1758731048816,12.59128976,214.26,214.18,10.10995295]
[1758731049219,12.59128976,214.26,214.18,7.96]
[1758731049415,9.72995295,214.25,214.18,10.10995295]
[1758731049620,7.58,214.24,214.18,7.96]
[1758731050121,4.1993,214.22,214.12,4.201]
[1758731050422,2.14995295,214.19,214.11,10.10995295]
[1758731050616,7.58,214.18,214.11,10.10995295]
[1758731050914,2.14995295,214.15,214.07,10.10995295]
[1758731051319,7.58,214.12,214.05,4.2025]
[1758731051524,7.58,214.1,214.04,7.96]
[1758731051713,2.14995295,214.09,214.04,7.96]
[1758731051914,7.58,214.08,214.04,7.96]
[1758731052119,9.72995295,214.09,214.01,7.96]
[1758731052824,7.58,214.06,214.01,7.96]
[1758731053125,7.58,214.08,214.01,7.96]
[1758731054021,7.58,214.08,214.04,4.2027]
[1758731054622,2.14995295,214.09,214.04,4.2027]
[1758731054923,2.14995295,214.07,213.97,7.96]
[1758731055124,2.14995295,214.07,213.98,2.14995295]
[1758731055511,2.14995295,214.07,214.0,4.2033]
[1758731057520,2.14995295,214.07,213.98,4.2039]
[1758731057818,7.58,214.06,213.98,4.2039]
[1758731058221,2.14995295,214.05,213.98,4.2039]
[1758731058426,7.58,214.04,213.97,7.96]
[1758731058828,2.14995295,214.03,213.97,7.96]
[1758731059327,2.14995295,214.03,213.97,12.1641]
[1758731059727,2.14995295,214.03,213.97,7.96]
[1758731060024,2.14995295,214.01,213.94,7.96]
[1758731060324,7.58,214.0,213.95,4.2045]
[1758731060519,9.72995295,214.01,213.95,4.2045]
[1758731061220,9.72995295,214.01,213.94,7.96]
[1758731061421,2.14995295,213.99,213.94,7.96]
[1758731061621,2.14995295,213.97,213.9,7.96]
[1758731062124,7.58,213.98,213.91,65.4156]
[1758731062521,7.58,213.98,213.92,7.96]
[1758731063223,7.58,213.98,213.94,4.2045]
[1758731063423,7.58,213.98,213.94,12.1645]
[1758731063615,9.72995295,213.98,213.94,12.1645]
[1758731063822,7.61,213.97,213.94,4.2045]
[1758731066423,2.14995295,213.96,213.92,4.205]
[1758731066623,2.14995295,213.96,213.9,7.22]
[1758731066836,7.61,213.95,213.9,7.22]
[1758731067030,9.75995295,213.96,213.91,4.2052]
[1758731067226,7.61,213.95,213.91,11.4252]
[1758731067524,5.17114459,214.07,213.89,65.4212]
[1758731067728,65.3647,214.08,213.89,65.4212]
[1758731067729,2.14995295,213.98,213.9,7.22]
[1758731068519,2.14995295,213.98,213.9,9.36995295]
[1758731068719,2.14995295,213.98,213.94,4.2047]
[1758731068923,7.61,214.08,213.93,72.6296]
[1758731069127,7.61,214.02,213.95,7.22]
[1758731069328,7.61,214.06,213.98,7.22]
[1758731070233,2.14995295,214.07,214.01,4.2031]
[1758731070424,124.0,214.13,213.99,65.3914]
[1758731070632,2.14995295,214.07,213.99,65.3914]
[1758731070830,7.61,214.06,214.03,4.2027]
[1758731071334,7.61,214.06,214.0,4.2033]
[1758731071525,7.61,214.06,213.98,9.36995295]
[1758731072131,7.61,214.06,214.03,4.2028]
[1758731073029,7.61,214.08,214.01,7.22]
[1758731073627,7.61,214.08,214.01,11.4232]
[1758731074834,7.61,214.08,214.02,4.2029]
[1758731075433,7.61,214.08,213.97,65.3974]
[1758731075434,2.14995295,214.07,213.98,7.22]
[1758731075634,2.14995295,214.07,214.0,4.2034]
[1758731076634,2.14995295,214.07,214.01,4.2031]
[1758731077029,2.14995295,214.07,214.03,4.2028]
[1758731077226,9.75995295,214.09,214.03,11.4228]
[1758731077630,2.14995295,214.11,214.03,7.22]
[1758731078733,7.61,214.13,214.06,4.2023]
[1758731078932,7.61,214.13,214.07,7.22]
[1758731080037,2.14995295,214.11,214.03,4.2027]
[1758731080238,7.61,214.1,214.03,4.2027]
[1758731082533,2.14995295,214.09,214.02,7.22]
[1758731083130,9.75995295,214.07,213.99,4.2036]
[1758731083635,2.14995295,214.05,213.99,4.2036]
[1758731083941,2.14995295,214.05,213.98,7.22]
[1758731084636,11.8123,214.07,213.98,7.22]
[1758731085343,11.8123,214.07,213.98,11.4237]
[1758731085642,11.8125,214.06,213.98,7.22]
[1758731086037,7.61,214.06,213.98,7.22]
[1758731087143,4.2025,214.05,213.98,7.22]
[1758731087447,7.61,214.04,213.93,7.22]
[1758731088344,4.2029,214.03,213.95,4.2043]
[1758731088540,3.36243189,214.02,213.93,7.22]
[1758731088745,7.61,214.01,213.93,7.22]
[1758731089454,7.61,214.01,213.94,4.2045]
[1758731100262,3.36243189,213.99,213.89,7.6]
[1758731100561,7.49,213.95,213.85,7.6]
[1758731101361,11.6946,213.95,213.88,4.2057]
[1758731101863,7.49,213.95,213.9,4.2053]
[1758731102061,74.52,214.0,213.89,7.6]
[1758731102263,10.85243189,214.01,213.91,7.6]
[1758731102460,10.85243189,214.01,213.94,4.2045]
[1758731102762,7.49,214.06,213.95,7.6]
[1758731105665,7.49,214.04,213.97,4.2039]
[1758731106867,11.6927,214.04,213.97,4.2039]
[1758731107365,7.49,214.04,213.97,4.2039]
[1758731107562,7.49,214.04,213.97,7.6]
[1758731108164,7.49,214.04,214.0,4.2033]
[1758731108363,7.49,214.04,214.0,11.8033]
[1758731109062,7.49,214.08,214.0,4.2033]
[1758731109264,1.16818125,214.07,214.0,4.2033]
[1758731109466,7.49,214.08,214.0,4.2033]
[1758731109969,1.16805751,214.07,214.0,4.2033]
[1758731110166,4.53064432,214.06,213.97,4.2039]
[1758731110364,7.49,214.08,213.97,4.2039]
[1758731110365,7.49,214.08,213.98,7.6]
[1758731112269,7.49,214.08,214.0,4.2033]
[1758731112761,7.49,214.08,213.98,7.6]
[1758731112966,7.49,214.05,213.92,7.6]
[1758731113164,10.85243189,214.03,213.92,7.6]
[1758731113367,7.49,214.01,213.92,11.805]
[1758731113664,7.49,214.01,213.92,4.205]
[1758731113665,3.36243189,214.0,213.92,4.205]
[1758731113864,7.56593189,214.0,213.9,4.2055]
[1758731114260,8.65853637,213.99,213.89,8.27649486]
[1758731114469,7.49,214.03,213.89,8.27649486]
[1758731114773,1.1683795,214.02,213.89,8.27649486]
[1758731114971,7.49,214.03,213.89,8.27649486]
[1758731115660,7.49,214.0,213.91,7.6]
[1758731116064,5.17114459,214.05,213.92,65.4125]
[1758731116264,7.49,214.08,213.99,7.6]
[1758731116467,1.16822365,214.07,213.99,7.6]
[1758731116666,1.16822365,214.06,213.99,7.6]
[1758731116870,1.16822365,214.05,213.99,7.6]
[1758731117072,11.6921,214.08,214.0,4.2035]
[1758731117264,1.1682024,214.07,214.0,4.2035]
[1758731117464,1.1682024,214.06,214.0,4.2035]
[1758731117775,15.86,214.1,214.01,7.6]
[1758731118267,15.86,214.1,214.05,4.2025]
[1758731118466,7.49,214.12,214.06,7.6]
[1758731118670,3.36243189,214.14,214.06,7.6]
[1758731118864,1.16784036,214.13,214.06,7.6]
[1758731119064,16.86154459,214.16,214.06,7.6]
[1758731119267,1.16783992,214.15,214.06,7.6]
[1758731119472,1.16783992,214.14,214.06,7.6]
[1758731119669,1.16783992,214.13,214.06,7.6]
[1758731119864,4.2008,214.14,214.06,7.6]
[1758731120166,1.16784016,214.13,214.06,7.6]
[1758731120369,4.2008,214.14,214.06,7.6]
[1758731120568,1.16783972,214.13,214.06,7.6]
[1758731120764,4.2008,214.14,214.06,7.6]
[1758731120968,1.16783958,214.13,214.06,7.6]
[1758731121274,4.2008,214.14,214.06,7.6]
[1758731121468,8.65784,214.13,214.06,7.6]
[1758731121668,7.49,214.13,214.06,7.6]
[1758731122868,7.49,214.13,214.05,4.2025]
[1758731125176,7.49,214.13,214.04,7.6]
[1758731125375,7.2,214.11,214.0,10.73243189]
[1758731125575,1.16784878,214.1,214.0,7.37]
[1758731126280,5.36934878,214.1,214.0,11.5733]
[1758731126478,7.2,214.11,214.0,7.37]
[1758731126479,1.16801486,214.09,214.0,7.37]
[1758731126780,7.2,214.07,213.96,7.37]
[1758731127083,7.2,214.05,213.96,7.37]
[1758731127372,10.56243189,214.05,213.96,7.37]
[1758731127575,7.2,214.03,213.9,7.37]
[1758731127969,7.2,214.03,213.93,4.2048]
[1758731128174,7.2,214.03,213.93,7.37]
[1758731129079,11.4031,214.03,213.93,11.5747]
[1758731129382,7.2,214.03,213.93,7.37]
[1758731129579,1.16844268,214.02,213.93,7.37]
[1758731129772,1.16844268,214.01,213.93,7.37]
[1758731130175,4.2037,213.99,213.93,7.37]
[1758731130683,4.204,213.98,213.89,4.88209486]
[1758731130882,3.36243189,213.96,213.81,3.36243189]
[1758731131080,3.36243189,213.96,213.82,7.37]
[1758731131081,7.2,213.95,213.82,7.37]
[1758731131682,7.2,213.95,213.81,3.36243189]
[1758731131683,4.2048,213.94,213.85,4.2062]
[1758731132584,7.2,213.95,213.85,4.2062]
[1758731133082,3.36243189,213.93,213.83,11.5768]
[1758731133289,7.2,213.92,213.83,11.5768]
[1758731133989,7.2,213.92,213.85,4.2064]
[1758731134986,7.2,213.92,213.83,11.5768]
[1758731136382,11.4051,213.92,213.83,11.5768]
[1758731136782,3.36243189,213.9,213.76,65.4617]
[1758731136987,7.2,213.89,213.77,7.37]
[1758731137983,7.2,213.89,213.81,4.2072]
[1758731138184,7.2,213.89,213.8,7.37]
[1758731139087,10.56243189,213.93,213.82,7.37]
[1758731140077,7.2,213.93,213.87,4.206]
[1758731140680,7.2,213.93,213.85,7.37]
[1758731141087,3.30076795,213.92,213.85,7.37]
[1758731141287,7.2,213.93,213.85,7.37]
[1758731141482,3.29993282,213.92,213.85,7.37]
[1758731141683,3.29993798,213.91,213.85,7.37]
[1758731141890,7.2,213.93,213.85,7.37]
[1758731142088,3.29984823,213.92,213.85,7.37]
[1758731142388,7.2,213.9,213.8,7.37]
[1758731142604,7.2,213.88,213.8,7.37]
[1758731142892,11.4059,213.88,213.8,11.5774]
[1758731143088,7.2,213.88,213.8,11.5774]
[1758731144996,7.2,213.88,213.8,7.37]
[1758731145497,7.2,213.88,213.82,4.2069]
[1758731146397,7.2,213.93,213.81,7.37]
[1758731146595,3.29612069,213.92,213.82,7.37]
[1758731146896,31.11485761,213.95,213.85,7.37]
[1758731147199,9.35485761,213.97,213.87,7.37]
[1758731147396,3.29657205,213.96,213.87,7.37]
[1758731147597,9.35485761,213.97,213.87,7.37]
[1758731147802,7.2,213.97,213.92,7.37]
[1758731147996,2.15485761,213.98,213.9,7.37]
[1758731148799,74.36,214.0,213.9,7.37]
[1758731149001,3.29672845,213.99,213.9,7.37]
[1758731149203,3.29672845,213.98,213.9,7.37]
[1758731149404,74.36,214.0,213.9,7.37]
[1758731149607,3.29702312,213.99,213.9,7.37]
[1758731149807,74.36,214.0,213.9,7.37]
[1758731150010,3.29702454,213.99,213.9,7.37]
[1758731150208,74.36,214.0,213.9,7.37]
[1758731150400,3.29702454,213.99,213.9,7.37]
[1758731150708,7.2,214.01,213.92,7.37]
[1758731150903,3.29732061,214.0,213.92,7.37]
[1758731151104,3.29732061,213.99,213.93,4.2047]
[1758731151404,7.2,214.01,213.92,7.37]
[1758731151603,7.2,213.99,213.88,7.37]
[1758731152209,7.2,213.99,213.91,4.2052]
[1758731152702,4.2039,213.98,213.9,4.2053]
[1758731153216,7.2,213.99,213.9,4.2053]
[1758731153414,3.2985075,213.98,213.9,4.2053]
[1758731153616,7.2,213.99,213.9,4.2053]
[1758731153812,3.29869775,213.98,213.9,4.2053]
[1758731154109,7.2,213.99,213.9,4.2053]
[1758731154310,3.29902488,213.98,213.9,4.2053]
[1758731154513,7.2,213.99,213.9,4.2053]
[1758731154817,3.29923146,213.98,213.9,4.2053]
[1758731155016,7.2,213.99,213.91,4.2051]
[1758731155219,7.2,213.99,213.88,7.37]
[1758731155220,3.29922878,213.98,213.88,7.37]
[1758731155415,57.73,214.04,213.91,7.19]
[1758731155715,57.73,214.04,213.95,4.2045]
[1758731155716,3.29963367,214.03,213.95,4.2045]
[1758731155915,3.29963367,214.02,213.95,4.2045]
[1758731156120,3.29963367,214.01,213.95,4.2045]
[1758731156308,10.70963367,214.0,213.95,11.3945]
[1758731156507,7.41,214.0,213.95,11.3945]
[1758731157712,7.41,214.04,213.93,7.19]
[1758731157916,3.30133941,214.03,213.93,7.19]
[1758731158113,7.41,214.04,213.96,65.4001]
[1758731158319,123.49,214.08,213.97,7.19]
[1758731158618,3.30200844,214.07,213.97,7.19]
[1758731158819,10.71200844,214.06,213.97,7.19]
[1758731159014,3.30200844,214.05,213.97,7.19]
[1758731159316,7.41,214.06,213.97,7.19]
[1758731159317,3.30200844,214.04,213.97,11.394]
[1758731159516,7.41,214.06,213.97,11.394]
[1758731159718,3.30159758,214.05,213.97,11.394]
[1758731159912,3.30159758,214.04,213.97,11.394]
[1758731160112,7.41,214.06,213.97,11.394]
[1758731160313,3.3017733,214.05,213.97,11.394]
[1758731160514,3.3017733,214.04,213.97,11.394]
[1758731160818,7.41,214.06,213.97,11.394]
[1758731161018,3.30033644,214.05,213.98,4.2038]
[1758731161318,3.30033644,214.04,213.97,7.19]
[1758731161614,116.08,214.08,213.99,7.95]
[1758731162208,123.5,214.08,214.03,12.1528]
[1758731163118,116.08,214.08,214.04,12.1526]
[1758731163418,7.42,214.11,214.04,12.1526]
[1758731163720,3.30168014,214.1,214.04,12.1526]
[1758731163918,7.42,214.08,214.04,12.1526]
[1758731164320,7.42,214.12,214.05,4.2024]
[1758731164618,3.30244825,214.11,214.04,7.95]
[1758731164816,123.4,214.12,214.04,7.95]
[1758731165008,3.30350072,214.11,214.04,12.1526]